fUST/lending_fUST_20251218
["ID","MTS","AMOUNT","RATE_DAILY","PERIOD"]
[398925069,1766000549859,-422.590346,0.000324,31]
[398925070,1766000549880,-422.590346,0.000324,31]
[398925071,1766000549902,-422.590346,0.000324,31]
[398925072,1766000549928,-206.114331,0.000324,31]
[398925073,1766000549951,-151.0,0.000324,31]
[398925074,1766000549976,-151.0,0.000324,31]
[398925075,1766000549999,-151.0,0.000324,31]
[398925076,1766000550021,-151.0,0.000324,31]
[398925077,1766000550044,-151.0,0.000324,31]
[398925078,1766000550067,-151.0,0.000324,31]
[398925079,1766000550091,-219.550663,0.000324,31]
[398925080,1766000550117,-151.0,0.000324,31]
[398925081,1766000550142,-219.550663,0.000324,31]
[398925082,1766000550167,-219.550663,0.000324,31]
[398925083,1766000550192,-219.550663,0.000324,31]
[398925084,1766000550215,-151.0,0.000324,31]
[398925085,1766000550239,-151.0,0.000324,31]
[398925086,1766000550262,-358.601008,0.000324,31]
[398925087,1766000550284,-358.601008,0.000324,31]
[398925088,1766000550307,-358.601008,0.000324,31]
[398925089,1766000550329,-358.601008,0.000324,31]
[398925090,1766000550351,-151.0,0.000324,31]
[398925091,1766000550374,-151.0,0.000324,31]
[398925092,1766000550397,-252.313228,0.000324,31]
[398925093,1766000550419,-252.313228,0.000324,31]
[398925094,1766000550441,-252.313228,0.000324,31]
[398925095,1766000550463,-252.313228,0.000324,31]
[398925096,1766000550486,-151.0,0.000324,31]
[398925097,1766000550508,-151.0,0.000324,31]
[398925098,1766000550530,-151.0,0.000324,31]
[398925099,1766000550552,-151.0,0.000324,31]
[398925100,1766000550574,-151.0,0.000324,31]
[398925101,1766000550595,-283.058729,0.000324,31]
[398925102,1766000550617,-227.593024,0.000324,31]
[398925103,1766000550639,-200.0,0.00033,120]
[398925104,1766000550660,-151.0,0.00033,31]
[398925105,1766000550682,-151.0,0.00033,31]
[398925106,1766000550704,-151.0,0.00033,31]
[398925107,1766000550727,-151.0,0.00033,31]
[398925108,1766000550749,-177.036329,0.00033,31]
[398925109,1766000550771,-365.894645,0.00033,31]
[398925110,1766000550792,-365.894645,0.00033,31]
[398925111,1766000550815,-365.894645,0.00033,31]
[398925112,1766000550837,-365.894645,0.00033,31]
[398925113,1766000550858,-169.273651,0.00033,31]
[398925114,1766000550880,-169.273651,0.00033,31]
[398925115,1766000550901,-169.273651,0.00033,31]
[398925116,1766000550926,-169.273651,0.00033,31]
[398925117,1766000550948,-162.378338,0.00033,31]
[398925118,1766000550971,-162.378338,0.00033,31]
[398925119,1766000550991,-162.378338,0.00033,31]
[398925120,1766000551015,-162.378338,0.00033,31]
[398925121,1766000551036,-859.687086,0.00033,31]
[398925122,1766000551059,-859.687086,0.00033,31]
[398925123,1766000551080,-859.687086,0.00033,31]
[398925124,1766000551102,-859.687086,0.00033,31]
[398925125,1766000551124,-266.02863,0.00033,31]
[398925126,1766000551147,-266.02863,0.00033,31]
[398925127,1766000551170,-266.02863,0.00033,31]
[398925128,1766000551192,-266.02863,0.00033,31]
[398925129,1766000551214,-417.899321,0.00033,31]
[398925130,1766000551236,-180.696803,0.00033,31]
[398925131,1766000551260,-417.899321,0.00033,31]
[398925132,1766000551282,-180.696803,0.00033,31]
[398925133,1766000551303,-417.899321,0.00033,31]
[398925134,1766000551324,-180.696803,0.00033,31]
[398925135,1766000551346,-417.899321,0.00033,31]
[398925136,1766000551368,-180.696803,0.00033,31]
[398925137,1766000551393,-151.0,0.00033,31]
[398925138,1766000551416,-151.0,0.00033,31]
[398925139,1766000551439,-151.0,0.00033,31]
[398925140,1766000551460,-151.0,0.00033,31]
[398925141,1766000551481,-422.590346,0.00033,31]
[398925142,1766000551503,-422.590346,0.00033,31]
[398925143,1766000551613,-422.590346,0.00033,31]
[398925144,1766000551636,-422.590346,0.00033,31]
[398925145,1766000551657,-151.0,0.00033,31]
[398925146,1766000551679,-151.0,0.00033,31]
[398925147,1766000551702,-151.0,0.00033,31]
[398925148,1766000551724,-257.200549,0.00033,31]
[398925149,1766000551747,-151.0,0.00033,31]
[398925150,1766000551769,-151.0,0.00033,31]
[398925151,1766000551792,-219.550663,0.00033,31]
[398925152,1766000551813,-218.825189,0.00033,31]
[398925153,1766000551835,-219.550663,0.00033,31]
[398925154,1766000551856,-219.550663,0.00033,31]
[398925155,1766000551878,-219.550663,0.00033,31]
[398925156,1766000551900,-151.0,0.00033,31]
[398925157,1766000551925,-151.0,0.00033,31]
[398925158,1766000551947,-358.601008,0.00033,31]
[398925159,1766000551971,-358.601008,0.00033,31]
[398925160,1766000551994,-358.601008,0.00033,31]
[398925161,1766000552015,-358.601008,0.00033,31]
[398925162,1766000552037,-151.0,0.00033,31]
[398925163,1766000552058,-151.0,0.00033,31]
[398925164,1766000552081,-252.313228,0.00033,31]
[398925165,1766000552103,-252.313228,0.00033,31]
[398925166,1766000552125,-252.313228,0.00033,31]
[398925167,1766000552148,-252.313228,0.00033,31]
[398925168,1766000552170,-151.0,0.00033,31]
[398925169,1766000552192,-151.0,0.00033,31]
[398925170,1766000552214,-151.0,0.00033,31]
[398925171,1766000552236,-151.0,0.00033,31]
[398925172,1766000552259,-151.0,0.00033,31]
[398925173,1766000552281,-344.56,0.000333,30]
[398925174,1766000552303,-151.0,0.00033569,31]
[398925175,1766000552327,-151.0,0.00033569,31]
[398925176,1766000552348,-151.0,0.00033569,31]
[398925177,1766000552371,-151.0,0.00033569,31]
[398925178,1766000552393,-151.0,0.00033569,31]
[398925179,1766000552416,-219.550663,0.00033569,31]
[398925180,1766000552443,-219.550663,0.00033569,31]
[398925181,1766000552476,-219.550663,0.00033569,31]
[398925182,1766000552505,-219.550663,0.00033569,31]
[398925183,1766000552538,-151.0,0.00033569,31]
[398925184,1766000552570,-183.821732,0.00033569,31]
[398925185,1766000552604,-358.601008,0.00033569,31]
[398925186,1766000552634,-358.601008,0.00033569,31]
[398925187,1766000552664,-358.601008,0.00033569,31]
[398925188,1766000552696,-358.601008,0.00033569,31]
[398925189,1766000552723,-151.0,0.00033569,31]
[398925190,1766000552751,-151.0,0.00033569,31]
[398925191,1766000552783,-252.313228,0.00033569,31]
[398925192,1766000552815,-252.313228,0.00033569,31]
[398925193,1766000552848,-252.313228,0.00033569,31]
[398925194,1766000552874,-252.313228,0.00033569,31]
[398925195,1766000552903,-151.0,0.00033569,31]
[398925196,1766000552939,-151.0,0.00033569,31]
[398925197,1766000552968,-151.0,0.00033569,31]
[398925198,1766000552999,-268.174332,0.00033569,31]
[398925199,1766000553028,-151.0,0.00033569,31]
[398925200,1766000553058,-300.0,0.00034,120]
[398925201,1766000553087,-859.687086,0.00034,31]
[398925202,1766000553115,-859.687086,0.00034,31]
[398925203,1766000553145,-859.687086,0.00034,31]
[398925204,1766000553174,-859.687086,0.00034,31]
[398925205,1766000553203,-266.02863,0.00034,31]
[398925206,1766000553233,-266.02863,0.00034,31]
[398925207,1766000553261,-266.02863,0.00034,31]
[398925208,1766000553290,-266.02863,0.00034,31]
[398925209,1766000553318,-417.899321,0.00034,31]
[398925210,1766000553345,-180.696803,0.00034,31]
[398925211,1766000553377,-417.899321,0.00034,31]
[398925212,1766000553405,-180.696803,0.00034,31]
[398925213,1766000553437,-417.899321,0.00034,31]
[398925214,1766000553470,-180.696803,0.00034,31]
[398925215,1766000553503,-417.899321,0.00034,31]
[398925216,1766000553534,-180.696803,0.00034,31]
[398925217,1766000553712,-151.0,0.00034,31]
[398925218,1766000553741,-151.0,0.00034,31]
[398925219,1766000553769,-151.0,0.00034,31]
[398925220,1766000553795,-151.0,0.00034,31]
[398925221,1766000553821,-422.590346,0.00034,31]
[398925222,1766000553846,-422.590346,0.00034,31]
[398925223,1766000553872,-422.590346,0.00034,31]
[398925224,1766000553897,-422.590346,0.00034,31]
[398925225,1766000553924,-597.5655512,0.00034132,30]
[398925226,1766000553950,-14702.0,0.000343,120]
[398925227,1766000553977,-301.8232098,0.00034954,30]
[398925228,1766000554006,-152.0,0.00035,120]
[398925229,1766000554032,-200.0,0.00035,120]
[398925230,1766000554058,-150.0,0.00035,69]
[398925231,1766000554083,-151.0,0.00035,31]
[398925232,1766000554108,-151.0,0.00035,31]
[398925233,1766000554132,-151.0,0.00035,31]
[398925234,1766000554156,-151.0,0.00035,31]
[398925235,1766000554180,-365.894645,0.00035,31]
[398925236,1766000554206,-365.894645,0.00035,31]
[398925237,1766000554230,-365.894645,0.00035,31]
[398925238,1766000554254,-365.894645,0.00035,31]
[398925239,1766000554277,-169.273651,0.00035,31]
[398925240,1766000554301,-169.273651,0.00035,31]
[398925241,1766000554323,-169.273651,0.00035,31]
[398925242,1766000554345,-169.273651,0.00035,31]
[398925243,1766000554367,-162.378338,0.00035,31]
[398925244,1766000554389,-162.378338,0.00035,31]
[398925245,1766000554412,-162.378338,0.00035,31]
[398925246,1766000554433,-162.378338,0.00035,31]
[398925247,1766000554457,-151.0,0.00035,31]
[398925248,1766000554479,-151.0,0.00035,31]
[398925249,1766000554502,-151.0,0.00035,31]
[398925250,1766000554523,-166.274112,0.00035,31]
[398925251,1766000554546,-151.0,0.00035,31]
[398925252,1766000554568,-219.550663,0.00035,31]
[398925253,1766000554590,-219.550663,0.00035,31]
[398925254,1766000554611,-219.550663,0.00035,31]
[398925255,1766000554634,-219.550671,0.00035,31]
[398925256,1766000554655,-151.0,0.00035,31]
[398925257,1766000554677,-358.601008,0.00035,31]
[398925258,1766000554700,-358.601008,0.00035,31]
[398925259,1766000554721,-358.601008,0.00035,31]
[398925260,1766000554743,-358.601012,0.00035,31]
[398925261,1766000554765,-151.0,0.00035,31]
[398925262,1766000554787,-151.0,0.00035,31]
[398925263,1766000554809,-252.313228,0.00035,31]
[398925264,1766000554830,-252.313228,0.00035,31]
[398925265,1766000554852,-252.313228,0.00035,31]
[398925266,1766000554874,-252.31323,0.00035,31]
[398925267,1766000554895,-151.0,0.00035,31]
[398925268,1766000554921,-151.0,0.00035,31]
[398925269,1766000554944,-151.0,0.00035,31]
[398925270,1766000554967,-151.0,0.00035,31]
[398925271,1766000554989,-859.687086,0.00035213,31]
[398925272,1766000555013,-859.687086,0.00035213,31]
[398925273,1766000555039,-859.687086,0.00035213,31]
[398925274,1766000555062,-859.687086,0.00035213,31]
[398925275,1766000555085,-266.02863,0.00035213,31]
[398925276,1766000555108,-266.02863,0.00035213,31]
[398925277,1766000555130,-266.02863,0.00035213,31]
[398925278,1766000555152,-266.02863,0.00035213,31]
[398925279,1766000555174,-417.899321,0.00035213,31]
[398925280,1766000555196,-180.696803,0.00035213,31]
[398925281,1766000555220,-417.899321,0.00035213,31]
[398925282,1766000555243,-180.696803,0.00035213,31]
[398925283,1766000555265,-417.899321,0.00035213,31]
[398925284,1766000555287,-180.696803,0.00035213,31]
[398925285,1766000555309,-417.899321,0.00035213,31]
[398925286,1766000555331,-180.696803,0.00035213,31]
[398925287,1766000555353,-151.0,0.00035213,31]
[398925288,1766000555375,-151.0,0.00035213,31]
[398925289,1766000555396,-151.0,0.00035213,31]
[398925290,1766000555418,-267.651898,0.00035213,31]
[398925291,1766000555441,-422.590346,0.00035213,31]
[398925292,1766000555463,-422.590346,0.00035213,31]
[398925293,1766000555484,-422.590346,0.00035213,31]
[398925294,1766000555506,-422.590346,0.00035213,31]
[398925295,1766000555528,-151.02,0.00035392,60]
[398925296,1766000555550,-200.0,0.000354,120]
[398925297,1766000555571,-200.0,0.0003544,41]
[398925298,1766000555593,-151.02,0.00035492,60]
[398925299,1766000555616,-151.02,0.00035592,60]
[398925300,1766000555637,-152.0,0.000356,120]
[398925301,1766000555660,-151.02,0.00035692,60]
[398925302,1766000555682,-151.02,0.00035792,60]
[398925303,1766000555705,-151.02,0.00035892,60]
[398925304,1766000555728,-192.6673613,0.00035947,30]
[398925305,1766000555852,-192.6673613,0.00035947,30]
[398925306,1766000555875,-190.6687038,0.00035947,30]
[398925307,1766000555897,-183.5628943,0.00035947,30]
[398925308,1766000555922,-183.5628943,0.00035947,30]
[398925309,1766000555945,-183.5628943,0.00035947,30]
[398925310,1766000555968,-183.5628943,0.00035947,30]
[398925311,1766000555992,-183.5628943,0.00035947,30]
[398925312,1766000556015,-183.5628943,0.00035947,30]
[398925313,1766000556037,-183.5628943,0.00035947,30]
[398925314,1766000556059,-183.5628943,0.00035947,30]
[398925315,1766000556082,-443.5955616,0.00035947,30]
[398925316,1766000556105,-151.0,0.00035958,31]
[398925317,1766000556126,-151.0,0.00035958,31]
[398925318,1766000556149,-151.0,0.00035958,31]
[398925319,1766000556171,-151.0,0.00035958,31]
[398925320,1766000556194,-365.894645,0.00035958,31]
[398925321,1766000556216,-365.894645,0.00035958,31]
[398925322,1766000556238,-365.894645,0.00035958,31]
[398925323,1766000556261,-365.894645,0.00035958,31]
[398925324,1766000556284,-169.273651,0.00035958,31]
[398925325,1766000556306,-169.273651,0.00035958,31]
[398925326,1766000556327,-169.273651,0.00035958,31]
[398925327,1766000556353,-169.273651,0.00035958,31]
[398925328,1766000556375,-162.378338,0.00035958,31]
[398925329,1766000556398,-162.378338,0.00035958,31]
[398925330,1766000556421,-162.378338,0.00035958,31]
[398925331,1766000556443,-162.378338,0.00035958,31]
[398925332,1766000556465,-859.687086,0.00035983,31]
[398925333,1766000556487,-859.687086,0.00035983,31]
[398925334,1766000556509,-859.687086,0.00035983,31]
[398925335,1766000556531,-859.687093,0.00035983,31]
[398925336,1766000556552,-266.02863,0.00035983,31]
[398925337,1766000556574,-266.02863,0.00035983,31]
[398925338,1766000556607,-266.02863,0.00035983,31]
[398925339,1766000556640,-266.02864,0.00035983,31]
[398925340,1766000556662,-417.899321,0.00035983,31]
[398925341,1766000556682,-180.696803,0.00035983,31]
[398925342,1766000556705,-417.899321,0.00035983,31]
[398925343,1766000556726,-180.696803,0.00035983,31]
[398925344,1766000556747,-417.899321,0.00035983,31]
[398925345,1766000556771,-180.696803,0.00035983,31]
[398925346,1766000556794,-417.899326,0.00035983,31]
[398925347,1766000556818,-180.69681,0.00035983,31]
[398925348,1766000556842,-151.0,0.00035983,31]
[398925349,1766000556865,-151.0,0.00035983,31]
[398925350,1766000556887,-151.0,0.00035983,31]
[398925351,1766000556908,-422.590346,0.00035983,31]
[398925352,1766000556934,-422.590346,0.00035983,31]
[398925353,1766000556961,-422.590346,0.00035983,31]
[398925354,1766000556984,-422.59034262,0.00035983,31]
[398925355,1766000557010,-151.02,0.00035992,60]
[398925356,1766000557034,-1886792.49250113,0.00035999,30]
[398925357,1766000570614,-2874.47616454,0.00035819,36]
[398925358,1766000570636,-588.5,0.00035999,30]
[398925359,1766000570659,-288702.87979887,0.00035999,30]
[398925360,1766000570682,-300.0,0.00036,120]
[398925361,1766000570705,-151.02,0.00036092,60]
[398925362,1766000570727,-305.13144309,0.00036177,38]
[398925363,1766000570750,-151.02,0.00036192,60]
[398925364,1766000570773,-151.02,0.00036292,60]
[398925365,1766000570796,-152.0,0.000363,120]
[398925366,1766000570819,-151.02,0.00036392,60]
[398925367,1766000570842,-791151.1342,0.0003644,30]
[398925368,1766000570865,-151.0,0.0003644,31]
[398925369,1766000570891,-151.0,0.0003644,31]
[398925370,1766000570914,-151.0,0.0003644,31]
[398925371,1766000570945,-151.0,0.0003644,31]
[398925372,1766000570969,-365.894645,0.0003644,31]
[398925373,1766000570992,-365.894645,0.0003644,31]
[398925374,1766000571018,-365.894645,0.0003644,31]
[398925375,1766000571040,-365.894636,0.0003644,31]
[398925376,1766000571074,-169.273651,0.0003644,31]
[398925377,1766000571100,-169.273651,0.0003644,31]
[398925378,1766000571124,-169.273651,0.0003644,31]
[398925379,1766000571148,-169.273652,0.0003644,31]
[398925380,1766000571172,-162.378338,0.0003644,31]
[398925381,1766000571199,-162.378338,0.0003644,31]
[398925382,1766000571223,-162.378338,0.0003644,31]
[398925383,1766000571246,-162.378336,0.0003644,31]
[398925384,1766000571271,-151.02,0.00036492,60]
[398925385,1766000571296,-151.02,0.00036592,60]
[398925386,1766000571319,-151.02,0.00036692,60]
[398925387,1766000571342,-151.02,0.00036792,60]
[398925388,1766000571366,-151.02,0.00036892,60]
[398925389,1766000571390,-152.0,0.000369,120]
[398925390,1766000571416,-151.02,0.00036992,60]
[398925391,1766000571439,-156.39613505,0.00037,120]
[398925392,1766000571465,-200.0,0.00037,120]
[398925393,1766000571490,-151.02,0.00037092,60]
[398925394,1766000571513,-151.02,0.00037192,60]
[398925395,1766000571537,-151.02,0.00037292,60]
[398925396,1766000571561,-151.02,0.00037392,60]
[398925397,1766000571583,-200.0,0.000374,120]
[398925398,1766000571607,-151.02,0.00037492,60]
[398925399,1766000571631,-152.0,0.000375,120]
[398925400,1766000571655,-153.0,0.00037538,30]
[398925401,1766000571679,-153.0,0.00037538,30]
[398925402,1766000571704,-153.0,0.00037538,30]
[398925403,1766000571727,-306.0,0.00037538,30]
[398925404,1766000571750,-153.0,0.00037538,30]
[398925405,1766000571774,-151.02,0.00037592,60]
[398925406,1766000571798,-151.02,0.00037692,60]
[398925407,1766000571821,-151.02,0.00037792,60]
[398925408,1766000571844,-200.0,0.0003785,47]
[398925409,1766000571867,-151.02,0.00037892,60]
[398925410,1766000571890,-151.02,0.00037992,60]
[398925411,1766000571913,-400.0,0.00038,120]
[398925412,1766000571940,-151.07312411,0.00038092,60]
[398925413,1766000571965,-152.0,0.000381,120]
[398925414,1766000571992,-151.0,0.00038356,120]
[398925415,1766000572017,-151.0,0.00038356,120]
[398925416,1766000572040,-151.0,0.00038356,120]
[398925417,1766000572064,-151.0,0.00038356,120]
[398925418,1766000572087,-151.0,0.00038356,120]
[398925419,1766000572110,-151.0,0.00038356,120]
[398925420,1766000572133,-151.0,0.00038356,120]
[398925421,1766000572156,-151.0,0.00038356,120]
[398925422,1766000572293,-151.0,0.00038356,120]
[398925423,1766000572318,-151.0,0.00038356,120]
[398925424,1766000572341,-151.0,0.00038356,120]
[398925425,1766000572364,-151.0,0.00038356,120]
[398925426,1766000572386,-151.0,0.00038356,120]
[398925427,1766000572408,-151.0,0.00038356,120]
[398925428,1766000572430,-151.0,0.00038356,120]
[398925429,1766000572451,-151.0,0.00038356,120]
[398925430,1766000572474,-151.0,0.00038356,120]
[398925431,1766000572497,-151.0,0.00038356,120]
[398925432,1766000572519,-297.748689,0.00038356,120]
[398925433,1766000572541,-703245.4526,0.0003844,30]
[398925434,1766000572564,-183.5628943,0.0003844,30]
[398925435,1766000572589,-154.02731375,0.0003874,30]
[398925436,1766000572613,-152.0,0.000388,120]
[398925437,1766000572636,-154.02731375,0.00038959,30]
[398925438,1766000572659,-200.0,0.00039,120]
[398925439,1766000572681,-151.0,0.00039041,120]
[398925440,1766000572704,-181.74,0.00039041,120]
[398925441,1766000572727,-154.02731375,0.00039178,30]
[398925442,1766000572751,-154.02731375,0.0003937,30]
[398925443,1766000572774,-152.0,0.000394,120]
[398925444,1766000572798,-154.02731375,0.00039589,30]
[398925445,1766000572820,-400.0,0.000396,120]
[398925446,1766000572845,-154.02731375,0.00039781,30]
[398925447,1766000572868,-269.7,0.00039976,30]
[398925448,1766000572891,-485.87791275,0.00039999,31]
[398925449,1766000572914,-223.47661133,0.00039999,31]
[398925450,1766000572941,-399.67436404,0.0004,120]
[398925451,1766000572965,-153.99829351,0.0004,120]
[398925452,1766000572987,-233.11025638,0.0004,100]
[398925453,1766000573014,-243.47182869,0.0004,120]
[398925454,1766000573038,-2546.23415,0.0004,120]
[398925455,1766000573064,-152.0,0.0004,120]
[398925456,1766000573089,-300.0,0.0004,120]
[398925457,1766000573114,-154.02731375,0.0004,30]
[398925458,1766000573139,-154.02731375,0.00040192,30]
[398925459,1766000573175,-200.0,0.0004026,54]
[398925460,1766000573202,-154.02731375,0.00040411,30]
[398925461,1766000573227,-500.0,0.00040544,30]
[398925462,1766000573252,-500.0,0.00040544,30]
[398925463,1766000573276,-500.0,0.00040544,30]
[398925464,1766000573300,-500.0,0.00040544,30]
[398925465,1766000573324,-500.0,0.00040544,30]
[398925466,1766000573348,-500.0,0.00040544,30]
[398925467,1766000573374,-232.04337748,0.00040544,30]
[398925468,1766000573397,-152.0,0.000406,120]
[398925469,1766000573421,-154.02731375,0.00040603,30]
[398925470,1766000573444,-154.02731375,0.00040822,30]
[398925471,1766000573472,-195.115,0.00041,120]
[398925472,1766000573497,-264.67329011,0.00041095,120]
[398925473,1766000573521,-385.34720991,0.00041095,60]
[398925474,1766000573545,-408.34756019,0.00041095,120]
[398925475,1766000573570,-406.71139645,0.00041095,120]
[398925476,1766000573596,-378.76071258,0.00041095,120]
[398925477,1766000573620,-402.30544319,0.00041095,120]
[398925478,1766000573648,-313.54623671,0.00041095,120]
[398925479,1766000573674,-295.72451098,0.00041095,120]
[398925480,1766000573702,-296.35777666,0.00041095,120]
[398925481,1766000573727,-206.79796131,0.00041095,60]
[398925482,1766000573753,-394.69854296,0.00041095,120]
[398925483,1766000573777,-303.68505629,0.00041095,120]
[398925484,1766000573803,-424.31487212,0.00041095,120]
[398925485,1766000573829,-630.49569826,0.00041095,120]
[398925486,1766000573855,-305.41469893,0.00041095,120]
[398925487,1766000573880,-254.4,0.00041095,120]
[398925488,1766000573904,-305.6792939,0.00041095,120]
[398925489,1766000573930,-307.35907076,0.00041095,120]
[398925490,1766000573956,-500.29484219,0.00041095,120]
[398925491,1766000573984,-1589.75,0.00041095,120]
[398925492,1766000574011,-176.36540794,0.00041095,120]
[398925493,1766000574035,-1000.0,0.00041095,120]
[398925494,1766000574059,-435.53779643,0.00041095,120]
[398925495,1766000574084,-368.03965533,0.00041095,120]
[398925496,1766000574107,-1914.8,0.00041095,120]
[398925497,1766000574131,-500.0,0.00041095,120]
[398925498,1766000574155,-430.87105275,0.00041095,120]
[398925499,1766000574180,-500.96334196,0.00041095,120]
[398925500,1766000574205,-728.1,0.00041095,120]
[398925501,1766000574324,-502.5314475,0.00041095,120]
[398925502,1766000574348,-202.84128778,0.00041095,120]
[398925503,1766000574371,-959.93,0.00041095,30]
[398925504,1766000574395,-162.91103972,0.00041095,120]
[398925505,1766000574419,-500.63499163,0.00041095,120]
[398925506,1766000574442,-445.4307255,0.00041095,120]
[398925507,1766000574466,-393.55270233,0.00041095,120]
[398925508,1766000574489,-500.0,0.00041095,120]
[398925509,1766000574512,-500.0,0.00041095,120]
[398925510,1766000574535,-274.78048247,0.00041095,120]
[398925511,1766000574567,-297.01641688,0.00041095,120]
[398925512,1766000574594,-414.09045249,0.00041095,120]
[398925513,1766000574619,-342.79576587,0.00041095,120]
[398925514,1766000574643,-500.0,0.00041095,120]
[398925515,1766000574666,-267.57127046,0.00041095,120]
[398925516,1766000574690,-559.41930016,0.00041095,120]
[398925517,1766000574715,-408.34696976,0.00041095,120]
[398925518,1766000574739,-533.96012968,0.00041095,120]
[398925519,1766000574763,-222.28470751,0.00041095,120]
[398925520,1766000574787,-267.95565497,0.00041095,120]
[398925521,1766000574811,-282.92751427,0.00041095,120]
[398925522,1766000574834,-251.02880627,0.00041095,120]
[398925523,1766000574857,-301.02431615,0.00041095,120]
[398925524,1766000574880,-500.0,0.00041095,120]
[398925525,1766000574902,-584.67372922,0.00041095,120]
[398925526,1766000574928,-635.05573808,0.00041095,120]
[398925527,1766000574952,-246.51513675,0.00041095,120]
[398925528,1766000574975,-262.31367033,0.00041095,120]
[398925529,1766000574999,-422.35721787,0.00041095,120]
[398925530,1766000575023,-500.0,0.00041095,120]
[398925531,1766000575047,-411.66531058,0.00041095,120]
[398925532,1766000575072,-448.18981796,0.00041095,120]
[398925533,1766000575097,-546.17174104,0.00041095,120]
[398925534,1766000575122,-202.67696162,0.00041095,120]
[398925535,1766000575146,-314.62836919,0.00041095,120]
[398925536,1766000575170,-500.0,0.00041095,120]
[398925537,1766000575193,-500.0,0.00041095,120]
[398925538,1766000575218,-500.0,0.00041095,120]
[398925539,1766000575241,-430.08,0.00041095,60]
[398925540,1766000575265,-314.95357646,0.00041095,120]
[398925541,1766000575289,-465.80609359,0.00041095,120]
[398925542,1766000575313,-500.0,0.00041095,120]
[398925543,1766000575337,-431.72712065,0.00041095,120]
[398925544,1766000575360,-1678.24,0.00041095,120]
[398925545,1766000575384,-260.98614615,0.00041095,120]
[398925546,1766000575407,-500.0,0.00041095,120]
[398925547,1766000575432,-272.25456042,0.00041095,120]
[398925548,1766000575456,-219.28881681,0.00041095,120]
[398925549,1766000575479,-500.0,0.00041095,120]
[398925550,1766000575504,-500.0,0.00041095,120]
[398925551,1766000575530,-13868.39,0.00041095,120]
[398925552,1766000575554,-695.03,0.00041095,120]
[398925553,1766000575577,-208.51051132,0.00041095,120]
[398925554,1766000575601,-275.9887587,0.00041095,120]
[398925555,1766000575624,-500.0,0.00041095,120]
[398925556,1766000575646,-223.98456216,0.00041095,120]
[398925557,1766000575669,-500.0,0.00041095,120]
[398925558,1766000575691,-500.0,0.00041095,120]
[398925559,1766000575715,-201.3240981,0.00041095,120]
[398925560,1766000575738,-437.28067528,0.00041095,120]
[398925561,1766000575762,-1098.22,0.00041095,120]
[398925562,1766000575784,-651.98,0.00041095,120]
[398925563,1766000575807,-359.50982841,0.00041095,120]
[398925564,1766000575829,-500.0,0.00041095,120]
[398925565,1766000575852,-180.164655,0.00041095,120]
[398925566,1766000575875,-359.99915768,0.00041095,120]
[398925567,1766000575898,-335.2426591,0.00041095,120]
[398925568,1766000575922,-376.47901482,0.00041095,120]